bitfinex/quotes_SOLUSD_20250724
["timestamp","ask_amount","ask_price","bid_price","bid_amount"]
[1753355104927,7.65836043,185.21,185.16,8.19843387]
[1753355105252,7.65836043,185.21,185.18,16.78468397]
[1753355105557,7.65836043,185.23,185.19,0.72]
[1753355105730,7.65836043,185.22,185.2,0.72]
[1753355106728,44.53845108,185.24,185.2,0.72]
[1753355106935,7.65836043,185.22,185.2,0.72]
[1753355107239,7.65836043,185.21,185.14,17.50468397]
[1753355107441,7.65836043,185.18,185.14,18.04481576]
[1753355107630,7.65836043,185.18,185.14,17.32481576]
[1753355107831,7.65836043,185.19,185.15,0.72]
[1753355108152,7.65836043,185.19,185.17,16.78468397]
[1753355108929,0.65,185.23,185.17,22.85510308]
[1753355109247,23.66854518,185.28,185.18,0.67]
[1753355109248,7.65836043,185.22,185.18,0.67]
[1753355109651,7.65836043,185.22,185.19,0.67]
[1753355109820,7.65836043,185.22,185.2,0.67]
[1753355110027,7.65836043,185.21,185.17,16.78468397]
[1753355110228,7.65836043,185.19,185.17,16.78468397]
[1753355110445,7.65836043,185.19,185.16,16.78468397]
[1753355110645,5.39869351,185.23,185.17,0.67]
[1753355110646,7.65836043,185.2,185.17,0.67]
[1753355111739,7.65836043,185.2,185.15,13.05933304]
[1753355111740,7.65836043,185.18,185.14,1.21013179]
[1753355111936,18.8954273,185.23,185.14,1.21013179]
[1753355111937,7.65836043,185.16,185.14,16.78468397]
[1753355112156,7.65836043,185.15,185.13,26.0]
[1753355112360,7.65836043,185.15,185.12,16.78468397]
[1753355112733,7.65836043,185.13,185.12,16.78468397]
[1753355113057,7.65836043,185.13,185.11,0.06]
[1753355113362,6.05104375,185.15,185.11,0.06]
[1753355113653,7.65836043,185.12,185.11,0.06]
[1753355115545,8.30836043,185.12,185.11,0.06]
[1753355116252,7.65836043,185.12,185.11,0.06]
[1753355116450,7.65836043,185.13,185.12,16.78468397]
[1753355116834,7.65836043,185.13,185.12,17.45468397]
[1753355117455,7.65836043,185.16,185.12,106.45468397]
[1753355117755,7.65836043,185.18,185.14,24.4430444]
[1753355117959,46.73836043,185.21,185.15,1.21010261]
[1753355118157,7.65836043,185.19,185.17,16.78468397]
[1753355118657,1.6069,185.3,185.19,16.78468397]
[1753355118871,5.71543086,185.28,185.2,8.32836043]
[1753355119073,7.65836043,185.29,185.23,24.4430444]
[1753355119235,7.65836043,185.29,185.25,16.78468397]
[1753355119658,44.49607165,185.32,185.27,16.78468397]
[1753355119956,7.65836043,185.29,185.27,16.78468397]
[1753355120657,7.65836043,185.28,185.23,17.99455332]
[1753355120831,0.65,185.29,185.23,24.98291375]
[1753355121034,7.65836043,185.28,185.23,25.65291375]
[1753355121261,7.65836043,185.28,185.25,16.78468397]
[1753355121453,7.65836043,185.28,185.25,17.45468397]
[1753355122034,7.65836043,185.26,185.24,26.0]
[1753355122238,7.65836043,185.25,185.2,39.1]
[1753355122440,7.65836043,185.23,185.21,16.78468397]
[1753355123769,8.30836043,185.22,185.15,0.67]
[1753355124057,39.73,185.26,185.16,16.78468397]
[1753355124238,7.65836043,185.25,185.2,16.78468397]
[1753355124437,7.65836043,185.25,185.22,16.78468397]
[1753355124740,7.65836043,185.24,185.22,16.78468397]
[1753355126438,7.65836043,185.23,185.2,16.78468397]
[1753355126844,5.39849483,185.24,185.17,46.77836043]
[1753355126845,7.65836043,185.22,185.17,46.77836043]
[1753355127155,7.65836043,185.2,185.18,16.78468397]
[1753355127336,5.39849483,185.24,185.18,16.78468397]
[1753355127539,7.65836043,185.22,185.2,16.78468397]
[1753355128065,7.65836043,185.22,185.2,17.45468397]
[1753355128858,7.65836043,185.22,185.2,16.78468397]
[1753355129959,7.65836043,185.22,185.2,17.45468397]
[1753355130559,7.65836043,185.21,185.2,16.78468397]
[1753355131366,8.30836043,185.21,185.2,16.78468397]
[1753355131745,8.30836043,185.21,185.17,39.12]
[1753355131746,8.30836043,185.21,185.17,16.78468397]
[1753355131936,7.65836043,185.2,185.17,16.78468397]
[1753355132142,7.65836043,185.18,185.13,16.78468397]
[1753355132441,7.65836043,185.17,185.15,16.78468397]
[1753355132659,7.65836043,185.18,185.15,17.45468397]
[1753355132870,27.5405,185.25,185.13,7.65836043]
[1753355132871,0.65,185.27,185.17,24.4430444]
[1753355133169,7.65836043,185.25,185.2,24.4430444]
[1753355133375,7.65836043,185.25,185.22,16.78468397]
[1753355133871,7.65836043,185.25,185.22,17.45468397]
[1753355134662,0.65,185.32,185.24,16.78468397]
[1753355134873,7.65836043,185.29,185.26,16.78468397]
[1753355135357,6.04607165,185.32,185.27,0.67]
[1753355135560,7.65836043,185.29,185.27,0.67]
[1753355135758,7.68836043,185.29,185.26,16.78468397]
[1753355136075,7.68836043,185.29,185.26,17.45468397]
[1753355136250,0.03,185.29,185.27,0.67]
[1753355136448,0.03,185.29,185.28,17.99440763]
[1753355136773,0.03,185.29,185.28,25.65276806]
[1753355136961,0.03,185.29,185.28,16.78468397]
[1753355137481,13.0853145,185.29,185.26,0.53978192]
[1753355137657,7.65836043,185.27,185.25,16.78468397]
[1753355137858,7.65836043,185.28,185.25,106.45468397]
[1753355138053,7.65836043,185.28,185.25,105.78468397]
[1753355138259,7.65836043,185.28,185.26,0.67]
[1753355138483,7.65836043,185.28,185.25,105.78468397]
[1753355138775,7.65836043,185.26,185.24,16.78468397]
[1753355138960,7.65836043,185.27,185.25,0.7]
[1753355139363,7.65836043,185.28,185.25,0.7]
[1753355139769,13.05560975,185.28,185.24,16.78468397]
[1753355140073,7.65836043,185.26,185.24,16.78468397]
[1753355140274,13.05624056,185.26,185.24,16.78468397]
[1753355140478,13.05624056,185.26,185.23,39.06]
[1753355140679,7.65836043,185.24,185.2,16.78468397]
[1753355140982,7.65836043,185.24,185.2,17.48468397]
[1753355141878,7.65836043,185.24,185.22,16.78468397]
[1753355142097,7.65836043,185.24,185.2,16.78468397]
[1753355142274,7.65836043,185.25,185.22,16.78468397]
[1753355142664,7.65836043,185.25,185.24,16.78468397]
[1753355143665,7.65836043,185.25,185.21,16.78468397]
[1753355143874,7.65836043,185.24,185.22,0.7]
[1753355145082,7.65836043,185.24,185.21,16.78468397]
[1753355145285,7.65836043,185.22,185.21,16.78468397]
[1753355145761,7.65836043,185.22,185.19,65.06]
[1753355145960,0.66,185.22,185.2,16.78468397]
[1753355146162,7.65836043,185.21,185.2,16.78468397]
[1753355146588,8.31836043,185.21,185.17,39.0]
[1753355146774,7.65836043,185.19,185.18,16.78468397]
[1753355146977,7.65836043,185.2,185.17,16.78468397]
[1753355147178,0.66,185.22,185.17,16.78468397]
[1753355147179,7.65836043,185.22,185.18,0.7]
[1753355147369,5.39840207,185.24,185.2,16.78468397]
[1753355147568,7.65836043,185.23,185.2,17.48468397]
[1753355147868,7.65836043,185.24,185.22,16.78468397]
[1753355149265,7.65836043,185.24,185.22,17.48468397]
[1753355149686,7.65836043,185.23,185.22,16.78468397]
[1753355149880,8.31836043,185.23,185.22,16.78468397]
[1753355150493,8.31836043,185.23,185.17,89.0]
[1753355150695,7.65836043,185.2,185.18,16.78468397]
[1753355150869,7.65836043,185.19,185.18,42.78468397]
[1753355151272,7.65836043,185.19,185.18,16.78468397]
[1753355151680,7.65836043,185.19,185.12,16.78468397]
[1753355151681,13.71822003,185.19,185.12,16.78468397]
[1753355151906,7.65836043,185.14,185.12,16.78468397]
[1753355152070,7.65836043,185.14,185.12,42.78468397]
[1753355152408,0.66,185.18,185.12,42.78468397]
[1753355152690,7.65836043,185.16,185.14,16.78468397]
[1753355152995,7.65836043,185.15,185.14,16.78468397]
[1753355153778,7.65836043,185.15,185.14,42.78468397]
[1753355154100,7.2905,185.23,185.15,16.78468397]
[1753355154282,7.65836043,185.2,185.15,24.4430444]
[1753355154467,7.65836043,185.2,185.17,16.78468397]
[1753355154669,0.66,185.23,185.17,17.48468397]
[1753355154670,7.65836043,185.21,185.17,17.48468397]
[1753355154974,7.65836043,185.22,185.19,16.78468397]
[1753355155181,7.65836043,185.23,185.19,16.78468397]
[1753355155480,7.65836043,185.23,185.2,0.7]
[1753355155915,7.65836043,185.23,185.21,16.78468397]
[1753355156123,39.0,185.25,185.21,16.78468397]
[1753355156304,5.39729065,185.28,185.23,24.4430444]
[1753355156498,0.03,185.29,185.25,16.78468397]
[1753355156825,7.68836043,185.29,185.25,17.48468397]
[1753355157406,13.0853442,185.29,185.25,17.48468397]
[1753355157600,7.65836043,185.28,185.25,17.48468397]
[1753355157805,7.65836043,185.28,185.25,16.78468397]
[1753355157806,0.03,185.26,185.25,16.78468397]
[1753355159502,0.03,185.26,185.25,17.48468397]
[1753355159734,0.03,185.26,185.25,75.77645506]
[1753355159931,0.03,185.29,185.28,42.78468397]
[1753355160232,0.03,185.29,185.28,90.00276806]
[1753355160547,0.1,185.35,185.33,16.78468397]
[1753355160750,13.05406521,185.34,185.3,16.78468397]
[1753355160930,13.71406521,185.34,185.3,16.78468397]
[1753355161336,7.65836043,185.33,185.3,16.78468397]
[1753355161549,5.49527786,185.35,185.32,16.78468397]
[1753355161753,13.15363829,185.35,185.32,16.78468397]
[1753355162050,7.65836043,185.33,185.32,16.78468397]
[1753355162348,0.1,185.35,185.31,24.4430444]
[1753355162551,7.75836043,185.35,185.31,17.48468397]
[1753355162859,13.15363197,185.35,185.31,17.48468397]
[1753355163042,13.15363197,185.35,185.31,16.78468397]
[1753355163240,7.65836043,185.34,185.31,16.78468397]
[1753355163440,7.65836043,185.34,185.3,0.5396654]
[1753355163639,7.75836043,185.35,185.31,0.7]
[1753355163848,0.1,185.35,185.32,1.23960716]
[1753355164145,0.1,185.35,185.34,16.78468397]
[1753355165343,0.1,185.35,185.31,17.32432025]
[1753355165548,8.31836043,185.34,185.31,16.78468397]
[1753355165747,0.1,185.35,185.31,16.78468397]
[1753355165935,7.75836043,185.35,185.32,0.7]
[1753355166341,0.1,185.35,185.33,0.7]
[1753355166649,0.1,185.35,185.34,18.0242329]
[1753355167243,0.1,185.35,185.34,16.78468397]
[1753355168151,8.41836043,185.35,185.32,89.0]
[1753355168450,7.65836043,185.34,185.33,16.78468397]
[1753355169041,7.65836043,185.34,185.32,89.0]
[1753355169257,7.65836043,185.33,185.32,105.78468397]
[1753355169644,7.65836043,185.33,185.32,89.0]
[1753355169846,7.65836043,185.33,185.29,16.78468397]
[1753355170043,7.65836043,185.32,185.29,16.78468397]
[1753355170442,7.65836043,185.33,185.29,16.78468397]
[1753355170643,7.65836043,185.33,185.3,0.72]
[1753355171158,5.39575815,185.34,185.29,16.78468397]
[1753355171364,7.65836043,185.33,185.31,0.72]
[1753355171561,13.05411858,185.34,185.29,25.1630444]
[1753355171858,13.71411858,185.34,185.29,27.89989913]
[1753355172055,7.65836043,185.32,185.29,19.5215387]
[1753355172256,7.65836043,185.32,185.29,16.78468397]
[1753355172651,8.31836043,185.31,185.29,16.78468397]
[1753355172851,8.31836043,185.31,185.29,105.78468397]
[1753355173445,7.65836043,185.31,185.29,105.78468397]
[1753355174363,13.05474784,185.31,185.29,105.78468397]
[1753355174865,8.31836043,185.3,185.29,89.0]
[1753355175043,0.66,185.3,185.29,89.0]
[1753355175248,8.31836043,185.3,185.29,89.0]
[1753355175760,13.7150145,185.3,185.29,89.0]
[1753355175972,0.1,185.35,185.29,34.37836043]
[1753355176146,0.1,185.35,185.34,24.4430444]
[1753355176351,0.1,185.35,185.34,63.9630444]
[1753355176662,0.1,185.35,185.34,64.6830444]
[1753355177687,0.03,185.43,185.35,18.88319395]
[1753355177839,0.03,185.43,185.42,16.78468397]
[1753355178044,7.68836043,185.43,185.4,16.78468397]
[1753355178269,0.03,185.43,185.4,16.78468397]
[1753355178771,0.03,185.43,185.4,17.50468397]
[1753355178972,0.03,185.43,185.4,16.78468397]
[1753355179143,0.03,185.43,185.42,16.78468397]
[1753355179467,0.03,185.43,185.42,24.98236054]
[1753355179642,0.03,185.43,185.42,16.78468397]
[1753355180441,0.03,185.43,185.42,25.1630444]
[1753355180973,0.03,185.43,185.42,30.55620587]
[1753355183452,0.03,185.43,185.42,25.1630444]
[1753355183960,0.03,185.43,185.42,30.55620587]
[1753355185574,0.03,185.43,185.42,69.93620587]
[1753355185752,0.03,185.43,185.42,70.47552201]
[1753355185956,0.03,185.43,185.42,90.36236054]
[1753355186168,0.03,185.43,185.42,42.78468397]
[1753355186362,0.03,185.43,185.42,82.16468397]
[1753355187871,8.34836043,185.43,185.4,16.78468397]
[1753355188062,7.65836043,185.41,185.4,16.78468397]
[1753355188258,7.65836043,185.41,185.38,56.10468397]
[1753355188869,7.65836043,185.39,185.36,16.78468397]
[1753355189066,7.65836043,185.39,185.38,16.78468397]
[1753355189374,8.31836043,185.4,185.38,16.78468397]
[1753355189757,7.65836043,185.4,185.36,56.10468397]
[1753355189971,7.65836043,185.4,185.36,56.82468397]
[1753355191582,7.65836043,185.4,185.36,62.2195279]
[1753355191986,7.65836043,185.41,185.36,69.15788833]
[1753355192163,7.65836043,185.42,185.37,8.91782204]
[1753355192356,7.65836043,185.42,185.39,16.78468397]
[1753355192555,7.68836043,185.43,185.39,16.78468397]
[1753355192760,0.69,185.43,185.39,16.78468397]
[1753355193058,8.34836043,185.43,185.39,16.78468397]
[1753355193469,7.68836043,185.43,185.39,17.50468397]
[1753355193680,7.68836043,185.43,185.39,106.50468397]
[1753355194083,0.03,185.43,185.42,16.78468397]
[1753355194286,0.03,185.43,185.42,106.50468397]
[1753355194493,0.03,185.43,185.42,114.1630444]
[1753355196060,0.03,185.43,185.42,119.55620587]
[1753355197158,0.1,185.46,185.44,16.78468397]
[1753355197358,0.1,185.46,185.45,64.2022733]
[1753355197787,0.1,185.46,185.45,64.9222733]
[1753355198364,0.1,185.46,185.45,17.32391287]
[1753355198562,0.1,185.46,185.45,56.00468397]
[1753355199166,0.1,185.46,185.45,39.22]
[1753355199167,0.81,185.46,185.45,39.22]
[1753355199372,0.81,185.46,185.44,128.19]
[1753355199566,0.1,185.46,185.44,128.19]
[1753355199765,13.50671809,185.51,185.44,128.19]
[1753355199766,0.03,185.51,185.45,19.63921287]
[1753355199988,0.1,185.54,185.53,42.78468397]
[1753355200188,0.1,185.54,185.53,83.76368035]
[1753355200388,0.1,185.54,185.53,186.48200466]
[1753355200695,0.1,185.54,185.53,185.94300828]
[1753355200917,0.1,185.54,185.53,188.69059477]
[1753355201088,0.1,185.54,185.53,181.03223434]
[1753355201396,0.1,185.54,185.53,188.69059477]
[1753355201578,0.1,185.54,185.53,192.94056349]
[1753355202086,0.1,185.54,185.53,148.25059477]
[1753355202289,0.1,185.54,185.53,188.73059477]
[1753355202483,0.1,185.54,185.53,181.07223434]
[1753355202679,0.1,185.54,185.53,188.03059477]
[1753355203072,0.1,185.54,185.53,188.73059477]
[1753355203282,0.1,185.54,185.53,182.62063089]
[1753355203467,0.1,185.54,185.53,174.96227046]
[1753355203669,0.1,185.54,185.53,59.99227046]
[1753355203896,8.46836043,185.54,185.53,57.24468397]
[1753355204092,0.81,185.54,185.53,57.24468397]
[1753355204290,0.81,185.54,185.53,40.46]
[1753355204794,0.81,185.54,185.52,40.42]
[1753355205385,8.46836043,185.54,185.52,40.42]
[1753355205776,7.75836043,185.54,185.52,40.42]
[1753355205986,0.71,185.53,185.52,57.20468397]
[1753355206188,0.71,185.53,185.51,2.6682984]
[1753355206189,8.36836043,185.53,185.51,40.4]
[1753355206395,0.71,185.52,185.51,40.38]
[1753355207171,5.48967819,185.54,185.51,40.38]
[1753355207172,6.19967819,185.54,185.51,40.38]
[1753355207414,7.65836043,185.53,185.51,40.38]
[1753355207902,0.1,185.54,185.52,16.78468397]
[1753355208421,0.1,185.54,185.53,40.36]
[1753355208602,0.81,185.54,185.53,40.36]
[1753355208782,8.46836043,185.54,185.53,40.36]
[1753355210296,8.46836043,185.54,185.52,57.14468397]
[1753355211213,0.81,185.54,185.52,57.14468397]
[1753355211390,0.1,185.54,185.52,57.14468397]
[1753355212699,8.46836043,185.54,185.52,57.04468397]
[1753355212904,7.65836043,185.53,185.52,57.04468397]
[1753355213504,8.36836043,185.53,185.52,40.26]
[1753355214302,13.75832431,185.53,185.52,40.26]
[1753355214485,7.61966388,185.53,185.51,0.06]
[1753355214686,15.27802431,185.53,185.51,0.06]
[1753355215199,7.65836043,185.52,185.51,0.06]
[1753355215881,13.75861485,185.52,185.51,0.06]
[1753355216587,6.10025442,185.52,185.51,0.06]
[1753355216793,13.75861485,185.52,185.51,0.06]
[1753355220307,13.75861485,185.52,185.51,1e-08]
[1753355220601,13.75861485,185.52,185.32,0.2]
[1753355220602,32.5714,185.49,185.37,88.97]
[1753355220808,7.65836043,185.38,185.37,88.97]
[1753355220983,8.36836043,185.38,185.36,88.97]
[1753355221187,8.36836043,185.37,185.36,88.97]
[1753355221391,8.36836043,185.37,185.32,89.17]
[1753355221705,7.65836043,185.35,185.32,89.17]
[1753355221908,7.65836043,185.34,185.32,89.17]
[1753355222298,7.65836043,185.35,185.32,89.17]
[1753355222900,7.65836043,185.33,185.32,89.17]
[1753355223211,8.36836043,185.33,185.32,0.2]
[1753355223810,8.36836043,185.33,185.25,0.06]
[1753355223996,7.65836043,185.26,185.25,0.06]
[1753355224787,7.65836043,185.27,185.25,0.06]
[1753355224994,7.65836043,185.26,185.25,0.06]
[1753355225296,8.36836043,185.26,185.25,0.06]
[1753355226401,13.76617971,185.26,185.25,0.06]
[1753355228289,8.36836043,185.26,185.25,0.06]
[1753355228904,13.76617971,185.26,185.25,0.06]
[1753355230616,13.49218305,185.3,185.25,0.06]
[1753355230617,0.68,185.29,185.25,0.06]
[1753355230798,7.65836043,185.27,185.25,0.06]
[1753355231310,26.0,185.32,185.25,8.25817149]
[1753355231311,6.07607165,185.32,185.25,8.25817149]
[1753355231512,7.65836043,185.3,185.26,17.44468397]
[1753355232214,7.65836043,185.29,185.26,17.44468397]
[1753355232413,7.65836043,185.3,185.26,17.44468397]
[1753355233304,0.68,185.35,185.28,16.78468397]
[1753355233506,7.65836043,185.33,185.28,24.4430444]
[1753355233724,7.65836043,185.36,185.31,7.65836043]
[1753355233889,7.65836043,185.36,185.31,8.31836043]
[1753355234096,7.65836043,185.36,185.31,7.65836043]
[1753355234298,7.65836043,185.36,185.33,16.78468397]
[1753355234808,7.65836043,185.36,185.31,8.31836043]
[1753355234809,7.65836043,185.36,185.32,16.78468397]
[1753355235010,7.65836043,185.36,185.32,17.44468397]
[1753355235322,7.65836043,185.36,185.32,16.78468397]
[1753355235524,5.39435904,185.38,185.33,0.66]
[1753355235825,7.65836043,185.36,185.33,0.66]
[1753355236019,7.65836043,185.37,185.33,0.66]
[1753355236318,7.65836043,185.38,185.34,0.66]
[1753355236696,13.05271617,185.38,185.34,0.66]
[1753355236897,7.65836043,185.37,185.32,64.4630444]
[1753355237208,7.65836043,185.37,185.33,0.66]
[1753355237412,13.05271617,185.38,185.33,8.31836043]
[1753355238125,13.05243612,185.39,185.34,8.31836043]
[1753355238902,13.73243612,185.39,185.34,8.31836043]
[1753355239843,7.65836043,185.38,185.34,0.66]
[1753355239995,8.33836043,185.38,185.33,7.65836043]
[1753355240621,13.73270896,185.38,185.33,7.65836043]
[1753355240811,8.33836043,185.37,185.32,64.4030444]
[1753355241011,7.65836043,185.34,185.32,105.75468397]
[1753355241217,8.33836043,185.34,185.32,105.75468397]
[1753355241714,7.65836043,185.34,185.3,88.97]
[1753355241914,7.65836043,185.34,185.3,89.63]
[1753355243218,7.65836043,185.33,185.3,88.97]
[1753355243510,6.07564016,185.34,185.3,88.97]
[1753355243511,7.65836043,185.31,185.3,88.97]
[1753355243718,7.65836043,185.31,185.25,89.03]
[1753355243719,8.33836043,185.31,185.25,89.03]
[1753355243922,7.65836043,185.27,185.25,39.92]
[1753355244121,0.68,185.3,185.25,39.92]
[1753355244325,7.65836043,185.27,185.25,0.06]
[1753355244636,0.68,185.29,185.25,0.06]
[1753355244637,7.65836043,185.26,185.25,0.06]
[1753355244931,13.73617971,185.26,185.25,0.06]
[1753355249306,34.88908834,185.26,185.22,0.06]
[1753355249510,7.65836043,185.23,185.22,0.06]
[1753355249925,8.33836043,185.23,185.22,0.06]
[1753355250438,0.68,185.23,185.22,0.06]
[1753355250619,8.33836043,185.23,185.22,0.06]
[1753355251028,13.73705394,185.23,185.22,0.06]
[1753355254342,39.78,185.24,185.22,0.06]
[1753355254827,1.5853,185.29,185.24,16.78468397]
[1753355254828,7.65836043,185.29,185.24,16.78468397]
[1753355255028,7.65836043,185.29,185.25,0.66]
[1753355255232,7.65836043,185.29,185.26,0.66]
[1753355255432,7.65836043,185.27,185.24,16.78468397]
[1753355255629,7.65836043,185.25,185.22,0.06]
[1753355255835,7.65836043,185.24,185.22,0.06]
[1753355256048,7.65836043,185.23,185.22,0.06]
[1753355257134,40.46,185.28,185.22,0.72]
[1753355257434,7.65836043,185.27,185.23,16.78468397]
[1753355257646,7.65836043,185.27,185.24,0.66]
[1753355257861,7.65836043,185.27,185.23,16.78468397]
[1753355258044,7.65836043,185.27,185.25,0.66]
[1753355259356,7.65836043,185.28,185.26,0.71]
[1753355260134,39.76,185.3,185.27,0.71]
[1753355260333,7.65836043,185.32,185.28,0.71]
[1753355260551,7.65836043,185.33,185.3,16.78468397]
[1753355260747,7.65836043,185.34,185.3,16.78468397]
[1753355260973,7.65836043,185.34,185.31,0.71]
[1753355261340,7.65836043,185.33,185.27,89.0]
[1753355261659,7.65836043,185.32,185.28,17.49468397]
[1753355262749,5.39519827,185.35,185.28,22.18189049]
[1753355263073,7.65836043,185.33,185.29,0.71]
[1753355263431,7.65836043,185.33,185.3,0.71]
[1753355263836,7.65836043,185.31,185.27,89.71]
[1753355264065,7.65836043,185.3,185.28,0.71]
[1753355264248,7.65836043,185.31,185.28,0.71]
[1753355264447,7.65836043,185.31,185.26,33.65836043]
[1753355264448,7.65836043,185.31,185.27,16.78468397]
[1753355264858,7.65836043,185.31,185.27,17.49468397]
[1753355265166,7.65836043,185.29,185.26,26.0]
[1753355265341,7.65836043,185.27,185.23,39.68]
[1753355265672,7.65836043,185.26,185.23,0.71]
[1753355266466,7.65836043,185.27,185.23,0.71]
[1753355267136,7.65836043,185.27,185.24,0.71]
[1753355267341,38.86,185.4,185.25,0.71]
[1753355267652,26.44639516,185.54,185.25,0.71]
[1753355267653,0.03,185.39,185.34,16.78468397]
[1753355267846,0.03,185.39,185.35,26.71]
[1753355268045,0.03,185.39,185.35,34.36836043]
[1753355268265,0.03,185.39,185.36,8.36836043]
[1753355268463,0.03,185.39,185.37,16.78468397]
[1753355268655,7.65836043,185.38,185.36,26.0]
[1753355268960,0.03,185.39,185.35,16.78468397]
[1753355268961,7.68836043,185.39,185.35,16.78468397]
[1753355269150,7.68836043,185.39,185.35,17.49468397]
[1753355269546,7.65836043,185.37,185.34,26.0]
[1753355270166,7.65836043,185.38,185.34,26.71]
[1753355271777,7.65836043,185.37,185.34,26.71]
[1753355272559,7.65836043,185.37,185.34,26.0]
[1753355273067,7.65836043,185.35,185.31,0.71]
[1753355273252,7.65836043,185.34,185.32,0.71]
[1753355274260,0.03,185.39,185.33,0.71]
[1753355274455,7.65836043,185.37,185.33,8.36836043]
[1753355274763,7.65836043,185.37,185.34,0.71]
[1753355275149,7.65836043,185.38,185.34,0.71]
[1753355275350,7.65836043,185.38,185.35,0.71]
[1753355275768,7.65836043,185.37,185.35,0.71]
[1753355276071,7.65836043,185.36,185.31,26.0]
[1753355276275,7.65836043,185.34,185.31,26.0]
[1753355277066,7.65836043,185.34,185.31,16.78468397]
[1753355277258,7.65836043,185.32,185.29,16.78468397]
[1753355279068,0.71,185.31,185.26,16.78468397]
[1753355279579,7.65836043,185.27,185.25,89.0]
[1753355279876,7.65836043,185.28,185.25,16.78468397]
[1753355280063,7.65836043,185.28,185.25,17.49468397]
[1753355280376,7.65836043,185.29,185.26,0.71]
[1753355280560,13.48752324,185.36,185.28,24.4430444]
[1753355280561,0.71,185.36,185.28,24.4430444]
[1753355280764,7.65836043,185.34,185.29,8.36836043]
[1753355281076,7.65836043,185.34,185.3,0.71]
[1753355281476,7.65836043,185.31,185.27,16.78468397]
[1753355281663,7.65836043,185.35,185.27,16.78468397]
[1753355281866,0.71,185.32,185.27,16.78468397]
[1753355282073,0.71,185.31,185.27,16.78468397]
[1753355282672,0.71,185.31,185.27,89.0]
[1753355282673,0.71,185.3,185.27,89.0]
[1753355282868,7.65836043,185.28,185.26,40.14]
[1753355283058,7.65836043,185.27,185.25,89.0]
[1753355283470,7.65836043,185.26,185.25,89.0]
[1753355283786,7.65836043,185.26,185.23,89.0]
[1753355283958,7.65836043,185.25,185.23,89.0]
[1753355284849,7.65836043,185.25,185.23,89.71]
[1753355285050,7.65836043,185.25,185.23,89.0]
[1753355285271,7.65836043,185.24,185.23,89.0]
[1753355286569,7.65836043,185.25,185.23,89.0]
[1753355287785,13.76656542,185.25,185.23,89.0]
[1753355287992,7.65836043,185.24,185.23,89.0]
[1753355288284,8.36836043,185.24,185.22,0.06]
[1753355288594,13.70705394,185.23,185.22,0.06]
[1753355288888,6.04869351,185.23,185.22,0.06]
[1753355289187,13.70705394,185.23,185.22,0.06]
[1753355292468,0.65,185.27,185.22,0.06]
[1753355292668,7.65836043,185.26,185.22,0.75]
[1753355292893,7.65836043,185.25,185.22,0.75]
[1753355294765,7.65836043,185.26,185.23,0.69]
[1753355294988,7.65836043,185.26,185.24,0.69]
[1753355295269,7.65836043,185.27,185.24,0.69]
[1753355295976,7.65836043,185.26,185.22,25.1930444]
[1753355296173,7.65836043,185.27,185.23,0.69]
[1753355296974,7.65836043,185.27,185.23,0.75]
[1753355297174,13.0559677,185.27,185.23,0.75]
[1753355297475,7.65836043,185.26,185.23,89.06]
[1753355297666,8.30836043,185.26,185.23,89.06]
[1753355298392,7.65836043,185.26,185.23,89.06]
[1753355299001,5.42723661,185.28,185.23,89.75]
[1753355299185,7.65836043,185.26,185.23,89.75]
[1753355300291,0.03,185.28,185.25,7.65836043]
[1753355300590,0.03,185.28,185.27,24.4430444]
[1753355300999,0.03,185.28,185.27,25.1330444]
[1753355301172,0.03,185.28,185.25,96.65836043]
[1753355301382,0.65,185.27,185.23,2.76735045]
[1753355301679,7.65836043,185.24,185.23,0.06]
[1753355302291,7.65836043,185.25,185.23,0.75]
[1753355302597,7.65836043,185.25,185.23,0.06]
[1753355302799,7.65836043,185.24,185.23,0.06]
[1753355304682,13.7067625,185.24,185.23,0.06]
[1753355306277,21.36512293,185.24,185.23,0.06]
[1753355307100,6.04840207,185.24,185.23,0.06]
[1753355307396,22.98712293,185.24,185.23,0.06]